lending/lending_fUSD_20240610
["ID","MTS","AMOUNT","RATE_DAILY","PERIOD"]
[328995382,1718050178218,162.46980569,0.00010836,10]
[328995390,1718050232226,-429.78706435,0.00012436,2]
[328995391,1718050232237,-3100.7560639,0.00012436,2]
[328995392,1718050232247,-334.23426842,0.00012437,2]
[328995393,1718050232258,-3935.23414799,0.00012437,2]
[328995394,1718050232268,-407.62260723,0.00012437,2]
[328995395,1718050232278,-201.67489333,0.00012437,2]
[328995396,1718050232288,-267.31376338,0.00012437,2]
[328995397,1718050232298,-659.07845299,0.00012437,2]
[328995398,1718050232308,-8421.50868744,0.00012437,2]
[328995399,1718050232319,-2368.99633201,0.00012438,2]
[328995400,1718050232329,-155.0,0.00012438,2]
[328995401,1718050232339,-482.00237009,0.00012438,2]
[328995402,1718050232349,-268.74584708,0.00012438,2]
[328995403,1718050232359,-155.0,0.00012438,2]
[328995404,1718050232370,-241.63233639,0.00012439,2]
[328995405,1718050232380,-792.46810918,0.00012439,2]
[328995406,1718050232394,-1000.0,0.00012439,2]
[328995407,1718050232404,-2465.0405818,0.00012439,2]
[328995408,1718050232413,-176.51048241,0.00012439,2]
[328995409,1718050232423,-263.84998264,0.0001244,2]
[328995410,1718050232433,-490.61954782,0.0001244,2]
[328995411,1718050232443,-1067.75598538,0.0001244,2]
[328995412,1718050232453,-307.45960582,0.0001244,2]
[328995413,1718050232464,-448.90813341,0.00012441,2]
[328995414,1718050232474,-10977.35791684,0.00012441,2]
[328995415,1718050232485,-10538.97339168,0.00012441,2]
[328995416,1718050232497,-282.95218659,0.00012441,2]
[328995417,1718050232508,-525.40490644,0.00012441,2]
[328995418,1718050232518,-5581.62144198,0.00012442,2]
[328995419,1718050232529,-2370.77689173,0.00012442,2]
[328995420,1718050232539,-155.0,0.00012442,2]
[328995421,1718050232550,-1253.38004593,0.00012443,2]
[328995422,1718050232560,-217.44360157,0.00012443,2]
[328995423,1718050232571,-1413.75176323,0.00012444,2]
[328995424,1718050232581,-9521.0154245,0.00012454,2]
[328995425,1718050232592,-719.55136828,0.00012455,2]
[328995426,1718050232602,-156.63359836,0.00012455,2]
[328995427,1718050232613,-160.95528543,0.00012455,2]
[328995428,1718050232623,-173.06731894,0.00012455,2]
[328995429,1718050232633,-223.44815964,0.00012455,2]
[328995430,1718050232649,-538.60151429,0.00012455,2]
[328995431,1718050232659,-220.89856811,0.00012455,2]
[328995432,1718050232669,-208.34393128,0.00012455,2]
[328995433,1718050232679,-263.26519163,0.00012455,2]
[328995434,1718050232688,-566.63006831,0.00012455,2]
[328995435,1718050232749,-0.01539188,0.00012455,2]
[328995436,1718050232762,-57.28078008,0.00012455,2]
[328995437,1718050232772,-155.0,0.00012455,2]
[328995438,1718050232782,-155.0,0.00012455,2]
[328995439,1718050232793,-204.44924406,0.00012455,2]
[328995440,1718050232804,-200.31301751,0.00012455,2]
[328995441,1718050232815,-156.94445572,0.00012455,2]
[328995442,1718050232826,-626.25690855,0.00012455,2]
[328995443,1718050232836,-155.50315678,0.00012455,2]
[328995444,1718050232846,-287.98703881,0.00012455,2]
[328995445,1718050232857,-1248.31846585,0.00012455,2]
[328995446,1718050232867,-179.39775421,0.00012455,2]
[328995447,1718050232878,-1285.04899094,0.00012455,2]
[328995448,1718050232896,-264.24076892,0.00012455,2]
[328995449,1718050232909,-2800.65423678,0.00012455,2]
[328995450,1718050232919,-155.41214259,0.00012455,2]
[328995451,1718050232931,-156.12777516,0.00012455,2]
[328995452,1718050232941,-201.04509439,0.00012455,2]
[328995453,1718050232951,-2350.65016854,0.00012455,2]
[328995454,1718050232962,-497.38960213,0.00012455,2]
[328995456,1718050232973,-193.56420238,0.00012455,2]
[328995458,1718050232983,-156.10178131,0.00012455,2]
[328995460,1718050232993,-879.73,0.00012455,2]
[328995462,1718050233004,-545.84909757,0.00012455,2]
[328995464,1718050233015,-499.99,0.00012455,2]
[328995466,1718050233026,-157.51970238,0.00012456,2]
[328995468,1718050233036,-284.31777379,0.00012456,2]
[328995470,1718050233046,-159.81262562,0.00012456,2]
[328995472,1718050233057,-155.36916986,0.00012456,2]
[328995474,1718050233067,-155.45314431,0.00012456,2]
[328995476,1718050233077,-155.40153651,0.00012456,2]
[328995478,1718050233088,-283.07027386,0.00012456,2]
[328995480,1718050233098,-229.35922986,0.00012456,2]
[328995482,1718050233108,-189.34506203,0.00012456,2]
[328995484,1718050233125,-205.23044304,0.00012456,2]
[328995486,1718050233136,-155.0,0.00012456,2]
[328995488,1718050233149,-848.18,0.00012457,2]
[328995490,1718050233159,-5999.42829552,0.00012457,2]
[328995493,1718050233181,-11511.61170448,0.00012457,2]
[328995494,1718050233192,-165.8,0.00012504,2]
[328995495,1718050233202,-1954.19,0.00012504,2]
[328995498,1718050233212,-1383.53,0.00012504,2]
[328995501,1718050233222,-250.0,0.00012546,2]
[328995504,1718050233232,-150.0,0.00012564,2]
[328995506,1718050233242,-302.24547736,0.00012596,2]
[328995508,1718050233252,-251.96596981,0.00012596,2]
[328995510,1718050233262,-245.74253613,0.000129,2]
[328995512,1718050233271,-23900.0,0.00013069,2]
[328995514,1718050233282,-1000.0,0.00013421,2]
[328995516,1718050233292,-293.0,0.00013497,2]
[328995518,1718050233302,-158.12,0.00013699,2]
[328995520,1718050233312,-159.57,0.00013699,2]
[328995522,1718050233324,-382.84586015,0.00013712,2]
[328995524,1718050233334,-412.75360643,0.00013777,2]
[328995526,1718050233344,-172.43,0.00013869,2]
[328995528,1718050233354,-1631.9008,0.00013896,2]
[328995530,1718050233363,-684.0915,0.00013899,2]
[328995532,1718050233373,-1000.0,0.00013899,2]
[328995534,1718050233384,-400.0,0.000139,5]
[328995536,1718050233395,-518.7,0.00013909,2]
[328995538,1718050233405,-3136.51,0.00013947,2]
[328995540,1718050233414,-3773.6000074,0.00013985,2]
[328995542,1718050233424,-8728.8627156,0.00013985,2]
[328995544,1718050233434,-269.12813727,0.00013995,2]
[328995546,1718050233443,-217.36329428,0.00013995,2]
[328995548,1718050233452,-155.0,0.00013995,2]
[328995550,1718050233463,-160.63341957,0.00013995,2]
[328995552,1718050233472,-155.0,0.00013995,2]
[328995553,1718050233481,-158.03447952,0.00013995,2]
[328995556,1718050233492,-155.45078624,0.00013995,2]
[328995558,1718050233505,-221.41495237,0.00013995,2]
[328995559,1718050233515,-156.20415426,0.00013995,2]
[328995562,1718050233525,-155.0,0.00013995,2]
[328995564,1718050233536,-453.58696588,0.00013995,2]
[328995565,1718050233546,-157.0308117,0.00013995,2]
[328995567,1718050233556,-157.44296407,0.00013995,2]
[328995569,1718050233566,-155.0,0.00013996,2]
[328995571,1718050233576,-8323.77725992,0.00013997,2]
[328995573,1718050233587,-200.03186853,0.00013997,2]
[328995574,1718050233597,-239.88319152,0.00013997,2]
[328995576,1718050233607,-1052.5997462,0.00013998,2]
[328995578,1718050233617,-296.73266768,0.00013998,2]
[328995580,1718050233627,-338.8029497,0.00013998,2]
[328995582,1718050233637,-210.70788545,0.00013998,2]
[328995584,1718050233650,-155.0,0.00013998,2]
[328995586,1718050233660,-156.84450477,0.00013998,2]
[328995588,1718050233669,-211.29883356,0.00013998,2]
[328995589,1718050233679,-1337.76263392,0.00013998,2]
[328995591,1718050233688,-195.79238693,0.00013998,2]
[328995593,1718050233698,-155.99830685,0.00013998,2]
[328995595,1718050233708,-10550.53214677,0.00013998,2]
[328995597,1718050233718,-155.0,0.00013998,2]
[328995598,1718050233728,-201.12551533,0.00013998,2]
[328995600,1718050233738,-286.53333514,0.00013998,2]
[328995602,1718050233748,-1392.58693338,0.00013998,2]
[328995604,1718050233760,-161.9141468,0.00013998,2]
[328995605,1718050233770,-1618.85939652,0.00013998,2]
[328995606,1718050233780,-235.59464842,0.00013998,2]
[328995607,1718050233790,-155.0,0.00013998,2]
[328995608,1718050233800,-156.7081457,0.00013998,2]
[328995609,1718050233809,-155.0,0.00013998,2]
[328995610,1718050233819,-176.60614506,0.00013998,2]
[328995611,1718050233828,-1156.64477965,0.00013998,2]
[328995612,1718050233838,-155.54684316,0.00013998,2]
[328995613,1718050233848,-155.0,0.00013998,2]
[328995614,1718050234000,-167.62937683,0.00013998,2]
[328995615,1718050234011,-957.37362739,0.00013998,2]
[328995616,1718050234021,-198.55160882,0.00013998,2]
[328995617,1718050234032,-4291.83751585,0.00013998,2]
[328995618,1718050234042,-155.0,0.00013998,2]
[328995619,1718050234052,-374.34572749,0.00013998,2]
[328995620,1718050234061,-155.0,0.00013998,2]
[328995621,1718050234071,-182.46062707,0.00013998,2]
[328995622,1718050234080,-208.21772939,0.00013998,2]
[328995623,1718050234089,-155.0,0.00013998,2]
[328995624,1718050234099,-156.4486,0.00013998,2]
[328995625,1718050234110,-189.35448094,0.00013998,2]
[328995626,1718050234120,-651.73707461,0.00013998,2]
[328995627,1718050234130,-460.96071792,0.00013998,2]
[328995628,1718050234141,-162.78509319,0.00013998,2]
[328995629,1718050234152,-156.40190278,0.00013998,2]
[328995630,1718050234162,-155.97806679,0.00013998,2]
[328995631,1718050234172,-3018.65921685,0.00013998,2]
[328995632,1718050234182,-307.52736456,0.00013998,2]
[328995633,1718050234192,-210.09854251,0.00013998,2]
[328995634,1718050234202,-1236.28417491,0.00013998,2]
[328995635,1718050234212,-620.58593424,0.00013999,2]
[328995636,1718050234223,-81368.2892726,0.00014,2]
[328995637,1718050234234,-152.448144,0.00014548,2]
[328995638,1718050234244,-153.540812,0.00014548,2]
[328995639,1718050234255,-151.0,0.00014548,2]
[328995640,1718050234266,-1000.0,0.00014764,2]
[328995641,1718050234276,-411.0,0.00014847,2]
[328995642,1718050234286,-151.0,0.00014863,2]
[328995643,1718050234296,-245.74253608,0.00014863,2]
[328995644,1718050234307,-1000.0,0.00014899,2]
[328995645,1718050234318,-900.0,0.000149,5]
[328995646,1718050234328,-14021.15367498,0.000149,2]
[328995647,1718050234339,-186.64468327,0.00014906,2]
[328995648,1718050234349,-154.283688,0.00014906,2]
[328995649,1718050234359,-172.62730068,0.00014946,2]
[328995650,1718050234370,-176.75608764,0.0001499,2]
[328995651,1718050234381,-151.89,0.0001499,2]
[328995652,1718050234393,-457230.61755258,0.00015,2]
[328995653,1718050234407,-992.484,0.00015,2]
[328995654,1718050234419,-2264.38856054,0.00015,2]
[328995655,1718050234432,-429.8742519,0.00015,2]
[328995656,1718050234472,-64471.19609341,0.00015,2]
[328995657,1718050234506,-857.74670121,0.00015,2]
[328995658,1718050234519,-9511.23617097,0.00015,2]
[328995659,1718050234532,-32788.58205403,0.00015,2]
[328995660,1718050234544,-123510.82662168,0.00015,2]
[328995661,1718050234555,-151.0,0.00015,2]
[328995662,1718050234565,-232.732742,0.00015,2]
[328995663,1718050234575,-155.52023343,0.00015,2]
[328995664,1718050234585,-466.42423923,0.00015,2]
[328995665,1718050234595,-502.2947,0.0001564,2]
[328995666,1718050234605,-502.2947,0.0001595,2]
[328995667,1718050234615,-168.75109233,0.00016073,2]
[328995668,1718050234624,-1000.0,0.00016106,2]
[328995669,1718050234634,-518.7,0.00016173,2]
[328995670,1718050234647,-502.2947,0.0001626,2]
[328995671,1718050234657,-14021.15367492,0.00016264,2]
[328995672,1718050234668,-399.0,0.00016332,2]
[328995673,1718050234678,-151.0,0.00016438,2]
[328995674,1718050234689,-151.0,0.00016438,2]
[328995675,1718050234699,-159.57,0.00016438,2]
[328995676,1718050234709,-502.29471,0.0001657,2]
[328995677,1718050234720,-3136.51,0.00016686,2]
[328995678,1718050234730,-502.2947,0.0001689,2]
[328995679,1718050234740,-502.2947,0.000172,2]
[328995680,1718050234750,-245.74253608,0.00017369,2]
[328995681,1718050234760,-14021.15367492,0.00017627,2]
[328995682,1718050234770,-518.7,0.00018437,2]
[328995683,1718050234780,-172.62730068,0.00018685,2]
[328995684,1718050234790,-14021.15367492,0.00018991,2]
[328995685,1718050234799,-500.0,0.00019178,2]
[328995686,1718050234809,-378.3977362,0.00019178,2]
[328995687,1718050234819,-385.6993835,0.00019178,2]
[328995688,1718050234829,-442.05435603,0.00019178,2]
[328995689,1718050234839,-500.0,0.00019178,2]
[328995690,1718050234850,-160.28225451,0.00019178,2]
[328995691,1718050234860,-1000.0,0.00019178,2]
[328995692,1718050234870,-1000.0,0.00019178,2]
[328995693,1718050234880,-1000.0,0.00019178,2]
[328995694,1718050234896,-1000.0,0.00019178,2]
[328995695,1718050234906,-1000.0,0.00019178,2]
[328995696,1718050234915,-1000.0,0.00019178,2]
[328995697,1718050234925,-1000.0,0.00019178,2]
[328995698,1718050234934,-1000.0,0.00019178,2]
[328995699,1718050234944,-1000.0,0.00019178,2]
[328995700,1718050234954,-1000.0,0.00019178,2]
[328995701,1718050234966,-1000.0,0.00019178,2]
[328995702,1718050234978,-1000.0,0.00019178,2]
[328995703,1718050234988,-176.0,0.00019178,2]
[328995704,1718050234999,-158.12,0.00019178,2]
[328995705,1718050235008,-168.75109229,0.00019404,2]
[328995706,1718050235017,-210.482296,0.00019451,2]
[328995707,1718050235027,-245.74253608,0.00019875,2]
[328995708,1718050235037,-1981.57791662,0.0002,2]
[328995709,1718050235047,-6258.42600459,0.0002,2]
[328995710,1718050235057,-548.88492439,0.0002,2]
[328995711,1718050235068,-366.40342975,0.0002,2]
[328995712,1718050235078,-1053.26023882,0.0002,2]
[328995713,1718050235089,-14021.15367492,0.00020355,2]
[328995714,1718050235099,-151.0,0.00020358,2]
[328995715,1718050235110,-6758.0,0.000206,3]
[328995716,1718050235120,-518.7,0.00020701,2]
[328995717,1718050235129,-11739.0,0.000212,5]
[328995718,1718050235140,-14021.15367492,0.00021718,2]
[328995719,1718050235152,-649.64,0.00021918,2]
[328995720,1718050235162,-161.16,0.00021918,2]
[328995721,1718050235172,-250.0,0.00021918,2]
[328995722,1718050235182,-200.89,0.0002192,2]
[328995723,1718050235192,-200.89,0.0002192,2]
[328995724,1718050235202,-790.69511824,0.00022,2]
[328995725,1718050235212,-150.0,0.00022281,2]
[328995726,1718050235222,-245.74253608,0.00022382,2]
[328995727,1718050235232,-172.62730068,0.00022423,2]
[328995728,1718050235242,-168.75109229,0.00022736,2]
[328995729,1718050235252,-518.7,0.00022965,2]
[328995730,1718050235263,-14021.15367492,0.00023082,2]
[328995731,1718050235273,-1300.0,0.000239,8]
[328995732,1718050235283,-12045.2671056,0.00024,3]
[328995733,1718050235294,-180.0,0.0002423,2]
[328995734,1718050235304,-172.57,0.00024384,2]
[328995735,1718050235314,-156.08,0.00024384,2]
[328995736,1718050235324,-158.41,0.00024384,2]
[328995737,1718050235334,-263.03,0.00024384,2]
[328995738,1718050235343,-14021.15367492,0.00024445,2]
[328995739,1718050235353,-1377.3668,0.00024699,2]
[328995740,1718050235370,-151.0,0.00024798,7]
[328995741,1718050235380,-4682.87905938,0.00024799,2]
[328995742,1718050235390,-4682.8790593,0.00024799,2]
[328995743,1718050235401,-4682.8790593,0.00024799,2]
[328995744,1718050235411,-4682.8790593,0.00024799,2]
[328995745,1718050235422,-4682.8790593,0.00024799,2]
[328995746,1718050235432,-4682.8790593,0.00024799,2]
[328995747,1718050235442,-4682.8790593,0.00024799,2]
[328995748,1718050235452,-245.74253608,0.00024888,2]
[328995749,1718050235462,-1650.7612534,0.000249,2]
[328995750,1718050235472,-151.89,0.0002499,2]
[328995751,1718050235482,-706.630092,0.00025,2]
[328995752,1718050235492,-58928.84278264,0.00025,10]
[328995753,1718050235506,-4465.35019783,0.00025,10]
[328995754,1718050235516,-151.0,0.00025,7]
[328995755,1718050235525,-528.79114155,0.00025,2]
[328995756,1718050235536,-611843.06858482,0.00025,2]
[328995757,1718050235546,-1250.0,0.00025,2]
[328995758,1718050235558,-518.7,0.00025229,2]
[328995759,1718050235571,-14021.15367492,0.00025809,2]
[328995760,1718050235581,-1695.0,0.00026,2]
[328995761,1718050235593,-2250.0,0.00026,2]
[328995762,1718050235607,-4682.8790593,0.00026002,2]
[328995763,1718050235618,-168.75109229,0.00026067,2]
[328995764,1718050235628,-172.62730068,0.00026162,2]
[328995765,1718050235638,-152.85771067,0.00026189,2]
[328995766,1718050235653,-169.1813528,0.000262,2]
[328995767,1718050235663,-152.45521484,0.00026216,2]
[328995768,1718050235673,-153.16409545,0.00026398,2]
[328995769,1718050235683,-1000.0,0.000264,2]
[328995770,1718050235693,-154.97899525,0.00026406,2]
[328995771,1718050235704,-153.16409545,0.00026491,2]
[328995772,1718050235715,-153.16409545,0.00026518,2]
[328995773,1718050235724,-152.45521484,0.00026518,2]
[328995774,1718050235735,-153.16409545,0.00026596,2]
[328995775,1718050235745,-153.10788593,0.00026716,2]
[328995776,1718050235755,-1695.0,0.00027,2]
[328995777,1718050235765,-1698.24945077,0.00027,2]
[328995778,1718050235776,-280.0,0.00027,2]
[328995779,1718050235787,-152.76215071,0.00027003,2]
[328995780,1718050235797,-163.0161449,0.00027023,2]
[328995781,1718050235807,-192.247841,0.00027119,2]
[328995782,1718050235818,-150.597007,0.00027119,2]
[328995783,1718050235828,-14021.15367492,0.00027173,2]
[328995784,1718050235838,-4865.42,0.00027322,2]
[328995785,1718050235848,-152.76215071,0.00027367,2]
[328995786,1718050235858,-245.74253608,0.00027394,2]
[328995787,1718050235868,-361.52432461,0.00027397,2]
[328995788,1718050235879,-11811.39,0.00027397,2]
[328995789,1718050235893,-576.8,0.00027397,10]
[328995790,1718050235903,-1582.20543207,0.000274,2]
[328995791,1718050235916,-153.10788593,0.00027474,2]
[328995792,1718050235926,-518.7,0.00027492,2]
[328995793,1718050235938,-153.16409545,0.00027511,2]
[328995794,1718050235948,-150.0,0.00027754,2]
[328995795,1718050235958,-153.16409545,0.00027756,2]
[328995796,1718050235968,-152.76215071,0.00027779,2]
[328995797,1718050235979,-150.0,0.00027855,2]
[328995798,1718050235990,-283.20944247,0.000279,2]
[328995799,1718050236000,-4682.8790593,0.00027951,2]
[328995800,1718050236010,-150.0,0.00027987,2]
[328995801,1718050236026,-1695.0,0.00028,2]
[328995802,1718050236036,-243.302902,0.00028,2]
[328995803,1718050236046,-151.0,0.00028,7]
[328995804,1718050236056,-1391.63751705,0.00028,15]
[328995805,1718050236067,-150.0,0.00028011,2]
[328995806,1718050236078,-150.0,0.00028073,2]
[328995807,1718050236087,-150.0,0.00028098,2]
[328995808,1718050236097,-150.0,0.00028296,2]
[328995809,1718050236107,-153.16409545,0.00028359,2]
[328995810,1718050236117,-150.0,0.00028378,2]
[328995811,1718050236126,-150.0,0.00028378,2]
[328995812,1718050236136,-155.0,0.000284,2]
[328995813,1718050236149,-150.0,0.00028401,2]
[328995814,1718050236160,-353.29,0.00028421,2]
[328995815,1718050236169,-836.9,0.00028421,2]
[328995816,1718050236179,-164.14,0.00028421,2]
[328995817,1718050236188,-153.16409545,0.00028445,2]
[328995818,1718050236198,-600.0,0.0002846,7]
[328995819,1718050236208,-192.247841,0.00028475,2]
[328995820,1718050236218,-150.597007,0.00028475,2]
[328995821,1718050236229,-12719.45348629,0.000285,3]
[328995822,1718050236240,-1701.74,0.00028512,2]
[328995823,1718050236250,-833.74,0.00028512,2]
[328995824,1718050236261,-14021.15367492,0.00028536,2]
[328995825,1718050236271,-150.0,0.00028558,2]
[328995826,1718050236281,-150.0,0.00028573,2]
[328995827,1718050236291,-150.0,0.00028723,2]
[328995828,1718050236302,-153.16409545,0.0002873,2]
[328995829,1718050236312,-150.0,0.00028756,2]
[328995830,1718050236322,-152.76215071,0.0002878,2]
[328995831,1718050236332,-2250.0,0.000288,2]
[328995832,1718050236343,-1800.0,0.000288,10]
[328995833,1718050236352,-150.0,0.00028808,2]
[328995834,1718050236363,-150.0,0.00028836,2]
[328995835,1718050236373,-150.0,0.0002889,2]
[328995836,1718050236383,-2200.0,0.000289,10]
[328995837,1718050236394,-1500.0,0.00028901,2]
[328995838,1718050236404,-1625.18014705,0.00028941,2]
[328995839,1718050236414,-171.96771533,0.00028941,2]
[328995840,1718050236425,-206.99415465,0.00028941,2]
[328995841,1718050236435,-254.30236589,0.00028941,2]
[328995842,1718050236445,-1000.0,0.00028941,2]
[328995843,1718050236455,-152.85771067,0.0002896,2]
[328995844,1718050236466,-150.0,0.00028969,2]
[328995845,1718050236476,-714.36804046,0.00029,2]
[328995846,1718050236486,-1695.0,0.00029,2]
[328995847,1718050236499,-5000.0,0.00029,7]
[328995848,1718050236510,-250.0,0.00029,4]
[328995849,1718050236521,-377.7,0.00029,4]
[328995850,1718050236532,-176.75608764,0.00029031,2]
[328995851,1718050236543,-1500.0,0.00029034,2]
[328995852,1718050236553,-504.95891365,0.00029041,4]
[328995853,1718050236563,-501.03574841,0.00029041,4]
[328995854,1718050236574,-502.48884206,0.00029041,4]
[328995855,1718050236585,-501.26134508,0.00029041,4]
[328995856,1718050236595,-502.21654505,0.00029041,4]
[328995857,1718050236605,-502.67314133,0.00029041,4]
[328995858,1718050236616,-500.0,0.00029041,4]
[328995859,1718050236627,-500.0,0.00029041,4]
[328995860,1718050236637,-501.42723367,0.00029041,4]
[328995861,1718050236650,-501.66181611,0.00029041,4]
[328995862,1718050236660,-500.0,0.00029041,4]
[328995863,1718050236670,-500.0,0.00029041,4]
[328995864,1718050236680,-583.76725848,0.00029041,4]
[328995865,1718050236690,-538.31,0.00029041,4]
[328995866,1718050236700,-500.0,0.00029041,4]
[328995867,1718050236710,-645.24,0.00029041,4]
[328995868,1718050236721,-500.0,0.00029041,4]
[328995869,1718050236731,-500.0,0.00029041,4]
[328995870,1718050236741,-500.0,0.00029041,4]
[328995871,1718050236751,-500.0,0.00029041,4]
[328995872,1718050236762,-237.89,0.00029041,4]
[328995873,1718050236772,-500.0,0.00029041,4]
[328995874,1718050236782,-587.25,0.00029041,4]
[328995875,1718050236910,-599.9977915,0.00029041,4]
[328995876,1718050236921,-500.0,0.00029041,4]
[328995877,1718050236934,-507.19471156,0.00029041,4]
[328995878,1718050236944,-500.0,0.00029041,4]
[328995879,1718050236954,-500.0,0.00029041,4]
[328995880,1718050236964,-565.61,0.00029041,4]
[328995881,1718050236976,-500.0,0.00029041,4]
[328995882,1718050236986,-500.0,0.00029041,4]
[328995883,1718050236996,-550.55,0.00029041,4]
[328995884,1718050237007,-500.0,0.00029041,4]
[328995885,1718050237017,-500.0,0.00029041,4]
[328995886,1718050237027,-500.0,0.00029041,4]
[328995887,1718050237037,-500.0,0.00029041,4]
[328995888,1718050237047,-500.0,0.00029041,4]
[328995889,1718050237058,-500.0,0.00029041,4]
[328995890,1718050237069,-500.0,0.00029041,4]
[328995891,1718050237079,-500.0,0.00029041,4]
[328995892,1718050237090,-257.62931929,0.00029041,4]
[328995893,1718050237101,-438.8012752,0.00029041,4]
[328995894,1718050237112,-506.34787236,0.00029041,4]
[328995895,1718050237122,-500.0,0.00029041,4]
[328995896,1718050237133,-500.0,0.00029041,4]
[328995897,1718050237143,-309.11218185,0.00029041,4]
[328995898,1718050237154,-500.0,0.00029041,4]
[328995899,1718050237163,-500.0,0.00029041,4]
[328995900,1718050237174,-500.0,0.00029041,4]
[328995901,1718050237184,-465.72725182,0.00029041,4]
[328995902,1718050237194,-500.0,0.00029041,4]
[328995903,1718050237204,-500.0,0.00029041,4]
[328995904,1718050237215,-500.0,0.00029041,4]
[328995905,1718050237226,-232.04784302,0.00029041,4]
[328995906,1718050237236,-526.11046804,0.00029041,4]
[328995907,1718050237246,-500.0,0.00029041,4]
[328995908,1718050237256,-162.09900129,0.00029041,4]
[328995909,1718050237267,-500.0,0.00029041,4]
[328995910,1718050237277,-507.97518203,0.00029041,4]
[328995911,1718050237287,-518.96876382,0.00029041,4]
[328995912,1718050237298,-500.0,0.00029041,4]
[328995913,1718050237308,-500.98115294,0.00029041,4]
[328995914,1718050237318,-506.04044757,0.00029041,4]
[328995915,1718050237329,-500.0,0.00029041,4]
[328995916,1718050237339,-500.0,0.00029041,4]
[328995917,1718050237349,-500.0,0.00029041,4]
[328995918,1718050237360,-500.0,0.00029041,4]
[328995919,1718050237370,-276.30431525,0.00029041,4]
[328995920,1718050237380,-500.0,0.00029041,4]
[328995921,1718050237390,-500.0,0.00029041,4]
[328995922,1718050237402,-500.0,0.00029041,4]
[328995923,1718050237412,-500.0,0.00029041,4]
[328995924,1718050237421,-500.0,0.00029041,4]
[328995925,1718050237432,-500.0,0.00029041,4]
[328995926,1718050237442,-512.75103083,0.00029041,4]
[328995927,1718050237452,-506.57879303,0.00029041,4]
[328995928,1718050237464,-500.0,0.00029041,4]
[328995929,1718050237475,-500.0,0.00029041,4]
[328995930,1718050237485,-536.35,0.00029041,4]
[328995931,1718050237497,-508.02661498,0.00029041,4]
[328995932,1718050237508,-500.0,0.00029041,4]
[328995933,1718050237518,-604.25640718,0.00029041,4]
[328995934,1718050237529,-521.62028173,0.00029041,4]
[328995935,1718050237540,-538.6722866,0.00029041,4]
[328995936,1718050237551,-553.1,0.00029041,4]
[328995937,1718050237561,-500.0,0.00029041,4]
[328995938,1718050237571,-516.29675534,0.00029041,4]
[328995939,1718050237582,-583.32,0.00029041,4]
[328995940,1718050237592,-500.0,0.00029041,4]
[328995941,1718050237603,-500.0,0.00029041,4]
[328995942,1718050237613,-500.0,0.00029041,4]
[328995943,1718050237624,-514.84230419,0.00029041,4]
[328995944,1718050237635,-576.56,0.00029041,4]
[328995945,1718050237648,-500.0,0.00029041,4]
[328995946,1718050237659,-500.0,0.00029041,4]
[328995948,1718050237669,-500.0,0.00029041,4]
[328995950,1718050237679,-500.0,0.00029041,4]
[328995952,1718050237691,-500.0,0.00029041,4]
[328995954,1718050237701,-495.17858239,0.00029041,4]
[328995955,1718050237712,-500.0,0.00029041,4]
[328995957,1718050237722,-500.0,0.00029041,4]
[328995958,1718050237733,-581.74327933,0.00029041,4]
[328995959,1718050237744,-500.0,0.00029041,4]
[328995960,1718050237756,-500.0,0.00029041,4]
[328995961,1718050237766,-500.0,0.00029041,4]
[328995962,1718050237777,-500.0,0.00029041,4]
[328995963,1718050237786,-500.0,0.00029041,4]
[328995964,1718050237796,-568.37,0.00029041,4]
[328995965,1718050237806,-500.0,0.00029041,4]
[328995966,1718050237817,-201.47367969,0.00029041,4]
[328995967,1718050237827,-193.13927625,0.00029041,4]